fUSD/lending_fUSD_20240818
["ID","MTS","AMOUNT","RATE_DAILY","PERIOD"]
[335218635,1723989032324,-86576.11626658,0.00010799,2]
[335218636,1723989032333,-1397.601,0.00010799,2]
[335218637,1723989032343,-440.88857809,0.00010799,2]
[335218638,1723989032352,-439.3444,0.000108,2]
[335218639,1723989032361,-10555.0436,0.000108,2]
[335218640,1723989032370,-603.01,0.00010835,2]
[335218641,1723989032379,-156.06058118,0.00010852,2]
[335218642,1723989032389,-155.08636607,0.00010862,2]
[335218643,1723989032399,-522.62990097,0.00010862,2]
[335218644,1723989032408,-340.45372566,0.00010862,2]
[335218645,1723989032417,-162.40871,0.0001088,2]
[335218646,1723989032428,-199.14492954,0.00010888,2]
[335218647,1723989032437,-303.6208526,0.0001089,2]
[335218648,1723989032446,-2665.3037,0.00010893,2]
[335218649,1723989032457,-11890.1212,0.00010893,2]
[335218650,1723989032466,-500.0,0.00010899,2]
[335218651,1723989032477,-290.528,0.00010899,2]
[335218652,1723989032489,-163.67346565,0.00010899,2]
[335218653,1723989032497,-532.59624349,0.000109,2]
[335218654,1723989032507,-715.15137906,0.000109,2]
[335218655,1723989032516,-155.0,0.00010949,2]
[335218656,1723989032526,-250.0,0.00010959,2]
[335218657,1723989032538,-3200.0,0.00010974,3]
[335218658,1723989032548,-577.37,0.00010986,2]
[335218659,1723989032558,-500.0,0.00010986,2]
[335218660,1723989032567,-203.09283229,0.00010989,2]
[335218661,1723989032576,-750.0,0.0001099,2]
[335218662,1723989032585,-5800.0,0.00010991,2]
[335218663,1723989032594,-155.35071902,0.00010993,2]
[335218664,1723989032603,-1679.3227387,0.00010994,2]
[335218665,1723989032613,-3518.4846891,0.00010994,2]
[335218666,1723989032622,-21123.779209,0.00010994,2]
[335218667,1723989032641,-5305.198089,0.00010994,2]
[335218668,1723989032650,-500.0,0.00010995,2]
[335218669,1723989032659,-151.0,0.00010996,2]
[335218670,1723989032669,-151.0,0.00010996,2]
[335218671,1723989032681,-151.0,0.00010996,2]
[335218672,1723989032692,-151.0,0.00010996,2]
[335218673,1723989032701,-151.0,0.00010996,2]
[335218674,1723989032711,-151.0,0.00010996,2]
[335218675,1723989032720,-158.470797,0.00010996,2]
[335218676,1723989032729,-151.0,0.00010996,2]
[335218677,1723989032739,-151.0,0.00010996,2]
[335218678,1723989032747,-151.0,0.00010996,2]
[335218679,1723989032757,-230.21188185,0.00010996,2]
[335218680,1723989032768,-565.11,0.00010996,2]
[335218681,1723989032777,-500.0,0.00010996,2]
[335218682,1723989032786,-20919.22271847,0.00010996,2]
[335218683,1723989032795,-500.0,0.00010997,2]
[335218684,1723989032804,-342.65099285,0.00010998,3]
[335218685,1723989032978,-155.19086348,0.00010471,2]
[335218686,1723989032988,-688.89305812,0.00010998,3]
[335218687,1723989032998,-151.398193,0.00010998,2]
[335218688,1723989033007,-151.0,0.00010998,2]
[335218689,1723989033016,-99.0866924,0.00010998,2]
[335218690,1723989033027,-150.6243976,0.00010998,2]
[335218691,1723989033036,-577.37,0.00010998,2]
[335218692,1723989033046,-577.37,0.00010998,2]
[335218693,1723989033055,-577.37,0.00010998,2]
[335218694,1723989033064,-577.37,0.00010998,2]
[335218695,1723989033073,-577.37,0.00010998,2]
[335218696,1723989033082,-577.37,0.00010998,2]
[335218697,1723989033091,-577.37,0.00010998,2]
[335218698,1723989033100,-213.711133,0.00010998,2]
[335218699,1723989033110,-213.711133,0.00010998,2]
[335218700,1723989033119,-152.277755,0.00010998,2]
[335218701,1723989033128,-355.68059,0.00010998,2]
[335218702,1723989033137,-847.970908,0.00010998,2]
[335218703,1723989033147,-355.68059,0.00010998,2]
[335218704,1723989033155,-847.970908,0.00010998,2]
[335218705,1723989033165,-618.654926,0.00010998,2]
[335218706,1723989033175,-618.654926,0.00010998,2]
[335218707,1723989033184,-242.082927,0.00010998,2]
[335218708,1723989033193,-242.082927,0.00010998,2]
[335218709,1723989033202,-500.0,0.00010998,2]
[335218710,1723989033212,-500.0,0.00010998,2]
[335218711,1723989033221,-648.36250497,0.00010998,2]
[335218712,1723989033230,-500.0,0.00010998,2]
[335218713,1723989033239,-500.0,0.00010998,2]
[335218714,1723989033248,-586.54,0.00010998,2]
[335218715,1723989033258,-151.0,0.00010998,2]
[335218716,1723989033267,-190.20354,0.00010998,2]
[335218717,1723989033277,-190.20354,0.00010998,2]
[335218718,1723989033287,-152.805553,0.00010998,2]
[335218719,1723989033296,-565.11,0.00010998,2]
[335218720,1723989033305,-565.11,0.00010998,2]
[335218721,1723989033314,-565.11,0.00010998,2]
[335218722,1723989033323,-565.11,0.00010998,2]
[335218723,1723989033332,-565.11,0.00010998,2]
[335218724,1723989033342,-565.11,0.00010998,2]
[335218725,1723989033351,-565.11,0.00010998,2]
[335218726,1723989033361,-500.0,0.00010998,2]
[335218727,1723989033370,-500.0,0.00010998,2]
[335218728,1723989033379,-500.0,0.00010998,2]
[335218729,1723989033388,-551.13049724,0.00010998,2]
[335218730,1723989033399,-500.0,0.00010998,2]
[335218731,1723989033408,-500.0,0.00010998,2]
[335218732,1723989033417,-500.0,0.00010998,2]
[335218733,1723989033427,-500.0,0.00010998,2]
[335218734,1723989033437,-500.0,0.00010998,2]
[335218735,1723989033446,-500.0,0.00010998,2]
[335218736,1723989033455,-500.0,0.00010998,2]
[335218737,1723989033465,-36794.12216843,0.00010999,2]
[335218738,1723989033476,-2763.18092288,0.00010999,2]
[335218740,1723989037670,-163.93181153,0.00010097,2]
[335218742,1723989037680,-155.21195308,0.00010097,2]
[335218744,1723989037694,-182.09230139,0.00010471,2]
[335218745,1723989037703,-4176.59279425,0.00010999,2]
[335218749,1723989037732,-853.08727691,0.00010999,2]
[335218750,1723989037899,-941.43031319,0.00010999,2]
[335218944,1723989040006,-601.22,0.00010999,2]
[335218947,1723989040021,-2047.84775124,0.00010999,2]
[335218966,1723989040194,-14698.68833052,0.00010999,2]
[335219198,1723989042947,-267.41,0.00010999,2]
[335219375,1723989045955,-946.21399857,0.00010999,2]
[335219376,1723989045967,-669.58337309,0.00010999,2]
[335219377,1723989046016,-267.42272386,0.00010999,2]
[335219381,1723989232060,542.3,8.219e-05,2]
[335219382,1723989240078,500.0,0.0001,2]
[335219383,1723989290571,4223.31613597,9.964e-05,2]
[335219384,1723989290594,12241.52386403,9.964e-05,2]
[335219385,1723989300851,250.0,9.964e-05,2]
[335219386,1723989355048,890.72,9.958e-05,2]
[335219387,1723989378072,6617.75613597,9.957e-05,2]
[335219388,1723989378094,3382.24386403,9.957e-05,2]
[335219391,1723989436728,500.0,0.00010021,2]
[335219392,1723989445822,200.0,9.949e-05,2]
[335219393,1723989447476,200.0,9.949e-05,2]
[335219394,1723989486112,360.0,9.944e-05,2]
[335219395,1723989589914,171.75,9.956e-05,2]
[335219398,1723989699594,515.18,8.219e-05,2]
[335219401,1723989749575,726.75533528,9.41e-05,2]
[335219402,1723989794885,550.0,0.0001,2]
[335219403,1723989865197,445.36,9.927e-05,2]
[335219404,1723989927765,840.0,9.904e-05,2]
[335219406,1723990036900,700.0,9.131e-05,2]
[335219407,1723990105102,186.66,9.907e-05,2]
[335219423,1723990171110,4797.52635124,0.00010026,2]
[335219428,1723990196255,489.42,8.219e-05,2]
[335219429,1723990196975,5002.5198915,0.00010026,2]
[335219435,1723990231902,-868.40617802,0.00010097,2]
[335219436,1723990231913,-316.80001562,0.00010097,2]
[335219437,1723990231923,-155.42756036,0.00010097,2]
[335219438,1723990231931,-489.42,0.0001047,2]
[335219439,1723990231941,-155.1164953,0.00010471,2]
[335219440,1723990231951,-330.29507359,0.00010471,2]
[335219441,1723990231960,-564.01417711,0.00010479,2]
[335219442,1723990231971,-787.72537109,0.00010479,2]
[335219443,1723990231984,-421.32802472,0.00010479,2]
[335219444,1723990231993,-171.52,0.0001048,2]
[335219445,1723990232003,-155.19385311,0.00010505,2]
[335219446,1723990232012,-5.05215828,0.00010505,2]
[335219447,1723990232024,-159.29445995,0.00010505,2]
[335219448,1723990232033,-272.06,0.00010505,2]
[335219449,1723990232043,-155.0,0.00010505,2]
[335219450,1723990232052,-155.50740323,0.00010699,2]
[335219451,1723990232062,-413.86463517,0.00010699,2]
[335219452,1723990232077,-445.10286169,0.00010699,2]
[335219453,1723990232088,-824.49360169,0.00010699,2]
[335219454,1723990232099,-545.24443961,0.00010699,2]
[335219455,1723990232108,-300.0,0.00010712,2]
[335219456,1723990232118,-205.57759256,0.00010713,2]
[335219458,1723990232132,-107.50439731,0.00010713,2]
[335219460,1723990232147,-118.13035922,0.00010713,2]
[335219462,1723990232158,-156.966318,0.00010713,2]
[335219464,1723990232168,-275.42639677,0.00010713,2]
[335219466,1723990232177,-522.85661593,0.00010713,2]
[335219468,1723990232187,-426.1029,0.00010794,2]
[335219469,1723990232197,-320.7457,0.00010799,2]
[335219470,1723990232206,-499.99,0.00010799,2]
[335219471,1723990232215,-835.2933,0.00010799,2]
[335219472,1723990232224,-150.0,0.00010851,2]
[335219473,1723990232233,-298.73770459,0.00010852,2]
[335219474,1723990232242,-298.73770459,0.00010852,2]
[335219475,1723990232251,-1910.03696891,0.0001089,2]
[335219476,1723990232261,-679.15013,0.0001089,2]
[335219477,1723990232270,-51571.6625,0.00010894,2]
[335219478,1723990232280,-12915.15757965,0.00010897,2]
[335219479,1723990232289,-500.0,0.00010898,2]
[335219480,1723990232298,-500.0,0.00010898,2]
[335219481,1723990232308,-63615.939,0.00010899,2]
[335219482,1723990232317,-3110.4897,0.00010899,2]
[335219483,1723990232326,-323.00183962,0.00010899,2]
[335219484,1723990232335,-151.0,0.00010899,2]
[335219485,1723990232344,-151.0,0.00010899,2]
[335219486,1723990232353,-151.0,0.00010899,2]
[335219487,1723990232362,-151.0,0.00010899,2]
[335219488,1723990232371,-151.0,0.00010899,2]
[335219489,1723990232381,-151.0,0.00010899,2]
[335219490,1723990232389,-151.0,0.00010899,2]
[335219491,1723990232398,-151.0,0.00010899,2]
[335219492,1723990232409,-151.0,0.00010899,2]
[335219493,1723990232418,-151.0,0.00010899,2]
[335219494,1723990232427,-464.775611,0.00010899,2]
[335219495,1723990232436,-464.775611,0.00010899,2]
[335219496,1723990232445,-309.284533,0.00010899,2]
[335219497,1723990232454,-464.775611,0.00010899,2]
[335219498,1723990232463,-309.284533,0.00010899,2]
[335219499,1723990232472,-464.775611,0.00010899,2]
[335219500,1723990232482,-309.284533,0.00010899,2]
[335219501,1723990232491,-309.284533,0.00010899,2]
[335219502,1723990232500,-151.0,0.00010899,2]
[335219503,1723990232509,-151.0,0.00010899,2]
[335219504,1723990232519,-1815.416084,0.00010899,2]
[335219505,1723990232528,-1815.416084,0.00010899,2]
[335219506,1723990232537,-1815.416084,0.00010899,2]
[335219507,1723990232547,-763.173817,0.00010899,2]
[335219508,1723990232556,-763.173817,0.00010899,2]
[335219509,1723990232565,-151.0,0.00010899,2]
[335219510,1723990232574,-151.0,0.00010899,2]
[335219511,1723990232583,-265.944217,0.00010899,2]
[335219512,1723990232592,-151.0,0.00010899,2]
[335219513,1723990232602,-151.0,0.00010899,2]
[335219514,1723990232611,-151.0,0.00010899,2]
[335219515,1723990232620,-151.0,0.00010899,2]
[335219516,1723990232629,-151.0,0.00010899,2]
[335219517,1723990232637,-151.0,0.00010899,2]
[335219518,1723990232645,-201.425849,0.00010899,2]
[335219519,1723990232655,-201.425849,0.00010899,2]
[335219520,1723990232664,-201.425849,0.00010899,2]
[335219521,1723990232673,-201.425849,0.00010899,2]
[335219522,1723990232682,-556.789434,0.00010899,2]
[335219523,1723990232691,-556.789434,0.00010899,2]
[335219524,1723990232701,-556.789434,0.00010899,2]
[335219525,1723990232710,-556.789434,0.00010899,2]
[335219526,1723990232719,-295.459756,0.00010899,2]
[335219527,1723990232728,-295.459756,0.00010899,2]
[335219528,1723990232738,-295.459756,0.00010899,2]
[335219529,1723990232747,-295.459756,0.00010899,2]
[335219530,1723990232756,-500.0,0.00010899,2]
[335219531,1723990232765,-500.0,0.00010899,2]
[335219532,1723990232774,-500.0,0.00010899,2]
[335219533,1723990232784,-500.0,0.00010899,2]
[335219534,1723990232793,-500.0,0.00010899,2]
[335219535,1723990232802,-500.0,0.00010899,2]
[335219536,1723990232811,-396.44969002,0.00010899,2]
[335219537,1723990232823,-103.55030998,0.00010899,2]
[335219538,1723990232832,-189.88781875,0.00010899,2]
[335219547,1723990237837,-310.11218125,0.00010899,2]
[335219548,1723990237847,-35.32781875,0.00010899,2]
[335219549,1723990237872,-464.67218125,0.00010899,2]
[335219550,1723990237882,-500.0,0.00010899,2]
[335219551,1723990237891,-500.0,0.00010899,2]
[335219552,1723990237900,-162.624027,0.00010899,2]
[335219553,1723990237910,-162.624027,0.00010899,2]
[335219554,1723990237919,-162.624027,0.00010899,2]
[335219555,1723990237928,-162.624027,0.00010899,2]
[335219556,1723990237939,-500.0,0.00010899,2]
[335219557,1723990237948,-500.0,0.00010899,2]
[335219558,1723990237957,-500.0,0.00010899,2]
[335219559,1723990237967,-500.0,0.00010899,2]
[335219560,1723990237976,-500.0,0.00010899,2]
[335219561,1723990237985,-500.0,0.00010899,2]
[335219562,1723990237994,-500.0,0.00010899,2]
[335219563,1723990238004,-500.0,0.00010899,2]
[335219564,1723990238013,-396.93948636,0.00010899,2]
[335219565,1723990238022,-11732.60645712,0.00010899,2]
[335219566,1723990238032,-11656.78576726,0.00010899,2]
[335219567,1723990238047,-75.82068982,0.00010899,2]
[335219568,1723990238056,-2580.69958773,0.00010899,2]
[335219569,1723990238106,-9151.90686935,0.00010899,2]
[335219570,1723990238116,-11732.60645708,0.00010899,2]
[335219571,1723990238129,-11732.60645708,0.00010899,2]
[335219572,1723990238139,-11732.60645708,0.00010899,2]
[335219573,1723990238148,-11732.60645708,0.00010899,2]
[335219574,1723990238158,-1417.44592738,0.00010899,2]
[335219575,1723990238170,-1925.36,0.00010899,2]
[335219576,1723990238182,-8389.8005297,0.00010899,2]
[335219578,1723990238191,-500.0,0.00010899,2]
[335219579,1723990238202,-11732.60645708,0.00010899,2]
[335219580,1723990238212,-500.0,0.00010899,2]
[335219581,1723990238222,-500.0,0.00010899,2]
[335219582,1723990238231,-500.0,0.00010899,2]
[335219583,1723990238240,-500.0,0.00010899,2]
[335219584,1723990238250,-500.0,0.00010899,2]
[335219585,1723990238259,-500.0,0.00010899,2]
[335219586,1723990238268,-500.0,0.00010899,2]
[335219587,1723990238278,-500.0,0.00010899,2]
[335219588,1723990238287,-500.0,0.00010899,2]
[335219589,1723990238297,-500.0,0.00010899,2]
[335219590,1723990238306,-500.0,0.00010899,2]
[335219592,1723990238316,-500.0,0.00010899,2]
[335219593,1723990238325,-500.0,0.00010899,2]
[335219594,1723990238335,-500.0,0.00010899,2]
[335219595,1723990238344,-500.0,0.00010899,2]
[335219596,1723990238353,-500.0,0.00010899,2]
[335219597,1723990238363,-500.0,0.00010899,2]
[335219598,1723990238542,-186.43470574,0.00010899,2]
[335219599,1723990238552,-39398.80720092,0.000109,2]
[335219601,1723990240097,-422.54887977,0.000108,2]
[335219602,1723990240107,-56.20375369,0.000109,2]
[335219603,1723990241404,-1121.2213578,0.000109,2]
[335219631,1723990243930,-255.06661922,0.000108,2]
[335219632,1723990243939,-245.51165703,0.000109,2]
[335219639,1723990317756,250.0,0.00010085,2]
[335219641,1723990427542,576.77,0.00010049,2]
[335219642,1723990489037,105.81455795,0.00010038,2]
[335219643,1723990489061,222.18544205,0.00010038,2]
[335219644,1723990499902,171.52,0.00010036,2]
[335219646,1723990568307,186.68,0.00010007,2]
[335219652,1723990667769,647.93,9.935e-05,2]
[335219654,1723990678115,536.24,8.219e-05,2]
[335219658,1723990794798,264.49036255,9.962e-05,2]
[335219660,1723990899743,288.38,9.92e-05,2]
[335219661,1723990968406,737.6,9.88e-05,2]
[335219665,1723991021664,1725.0,0.00010026,2]
[335219666,1723991033100,186.68,9.862e-05,2]
[335219667,1723991117292,291.17202967,0.00010026,2]
[335219670,1723991235977,509.42,8.219e-05,2]
[335219677,1723991334453,458.47016596,9.962e-05,2]
[335219683,1723991408353,288.38,9.825e-05,2]
[335219689,1723991432312,-301.26005796,0.00010467,2]
[335219690,1723991432324,-208.15994204,0.00010467,2]
[335219691,1723991432334,-150.0,0.00010704,2]
[335219692,1723991432343,-150.0,0.00010715,2]
[335219693,1723991432352,-150.0,0.00010719,2]
[335219694,1723991432362,-150.0,0.0001072,2]
[335219695,1723991432371,-1500.0,0.00010724,2]
[335219696,1723991432381,-1500.0,0.00010725,2]
[335219697,1723991432390,-150.0,0.0001073,2]
[335219698,1723991432400,-150.0,0.00010731,2]
[335219699,1723991432409,-150.0,0.00010732,2]
[335219700,1723991432418,-150.0,0.00010738,2]
[335219701,1723991432427,-150.0,0.00010739,2]
[335219702,1723991432437,-150.0,0.00010743,2]
[335219703,1723991432446,-150.0,0.00010746,2]
[335219704,1723991432456,-150.0,0.0001075,2]
[335219705,1723991432465,-150.0,0.00010751,2]
[335219706,1723991432475,-150.0,0.00010752,2]
[335219707,1723991432485,-150.0,0.00010753,2]
[335219708,1723991432495,-150.0,0.00010754,2]
[335219710,1723991432506,-150.0,0.00010755,2]
[335219712,1723991432518,-150.0,0.00010755,2]
[335219714,1723991432527,-150.0,0.00010758,2]
[335219715,1723991432536,-150.0,0.00010761,2]
[335219716,1723991432546,-150.0,0.00010762,2]
[335219717,1723991432556,-150.0,0.00010762,2]
[335219718,1723991432565,-150.0,0.00010764,2]
[335219719,1723991432574,-1181.66355796,0.00010765,2]
[335219720,1723991432588,-318.33644204,0.00010765,2]
[335219721,1723991432598,-150.0,0.00010765,2]
[335219723,1723991432608,-300.0,0.00010765,2]
[335219725,1723991432618,-150.0,0.00010766,2]
[335219728,1723991432627,-1500.0,0.00010768,2]
[335219731,1723991432637,-150.0,0.00010772,2]
[335219733,1723991432646,-1500.0,0.00010773,2]
[335219734,1723991432656,-150.0,0.00010777,2]
[335219735,1723991432666,-1024.95527884,0.00010778,2]
[335219736,1723991432690,-475.04472116,0.00010778,2]
[335219737,1723991432700,-1500.0,0.0001078,2]
[335219738,1723991432710,-150.0,0.00010781,2]
[335219739,1723991432720,-1500.0,0.00010784,2]
[335219740,1723991432730,-1500.0,0.00010784,2]
[335219741,1723991432740,-150.0,0.00010785,2]
[335219742,1723991432749,-150.0,0.00010788,2]
[335219743,1723991432758,-150.0,0.00010788,2]
[335219744,1723991432771,-150.0,0.0001079,2]
[335219745,1723991432787,-279.95527884,0.0001079,2]
[335219746,1723991432799,-399.19486116,0.0001079,2]
[335219747,1723991432808,-332.97165133,0.0001079,2]
[335219748,1723991432820,-30.27154867,0.0001079,2]
[335219749,1723991432829,-150.0,0.00010793,2]
[335219750,1723991432839,-248.18494047,0.00010793,2]
[335219751,1723991432851,-1251.81505953,0.00010793,2]
[335219752,1723991432860,-150.0,0.00010793,2]
[335219753,1723991432870,-150.0,0.00010793,2]
[335219754,1723991432879,-150.0,0.00010794,2]
[335219755,1723991432888,-150.0,0.00010797,2]
[335219756,1723991432898,-334.8370306,0.00010799,2]
[335219757,1723991432910,-1945.5268694,0.00010799,2]
[335219758,1723991432920,-3416.0425,0.000108,2]
[335219759,1723991432929,-785.2785,0.000108,2]
[335219760,1723991432939,-499.99,0.000108,2]
[335219761,1723991432948,-150.0,0.000108,2]
[335219762,1723991432958,-484.26508797,0.00010802,2]
[335219763,1723991432967,-150.0,0.00010805,2]
[335219764,1723991432976,-1500.0,0.00010806,2]
[335219765,1723991432985,-150.0,0.00010812,2]
[335219766,1723991432995,-150.0,0.00010813,2]
[335219767,1723991433004,-150.0,0.00010813,2]
[335219768,1723991433013,-243.9973009,0.00010813,2]
[335219769,1723991433023,-150.0,0.00010813,2]
[335219770,1723991433032,-599.21497701,0.00010816,2]
[335219771,1723991433052,-681.39069848,0.00010816,2]
[335219967,1723991440322,-255.19609183,0.00010799,2]
[335219969,1723991440331,-217.55383496,0.00010816,2]
[335220567,1723991446201,-1.84048955,0.00010816,2]
[335220569,1723991446212,-150.0,0.00010817,2]
[335220571,1723991446221,-150.0,0.00010817,2]
[335220573,1723991446232,-150.0,0.00010817,2]
[335220574,1723991446241,-150.0,0.00010819,2]
[335220576,1723991446251,-150.0,0.0001082,2]
[335220578,1723991446260,-451.92223045,0.0001082,2]
[335221150,1723991485415,409.92,9.913e-05,2]
[335221151,1723991496427,500.0,9.275e-05,2]
[335221153,1723991501769,-300.0,0.00012,25]
[335221154,1723991523533,170.35,9.913e-05,2]
[335221155,1723991535766,700.0,8.551e-05,2]
[335221156,1723991536208,700.0,8.654e-05,2]
[335221157,1723991537265,700.0,8.961e-05,2]
[335221158,1723991537570,500.0,8.22e-05,2]
[335221159,1723991537767,700.0,9.093e-05,2]
[335221160,1723991538004,500.0,9.275e-05,2]
[335221161,1723991538289,700.0,9.122e-05,2]
[335221162,1723991538778,700.0,9.512e-05,2]
[335221163,1723991539338,700.0,9.988e-05,2]
[335221164,1723991545429,500.0,9.664e-05,2]
[335221165,1723991547607,500.0,8.94e-05,2]
[335221168,1723991548096,500.0,9.348e-05,2]
[335221169,1723991558992,-165.56,0.000139,31]
[335221170,1723991559016,-165.56,0.000139,31]
[335221171,1723991559040,-165.56,0.000139,31]
[335221172,1723991559064,-165.56,0.000139,31]
[335221173,1723991559088,-165.56,0.000139,31]
[335221174,1723991559111,-165.56,0.000139,31]
[335221175,1723991559135,-165.56,0.000139,31]
[335221176,1723991559158,-165.56,0.000139,31]
[335221177,1723991559182,-165.56,0.000139,31]
[335221178,1723991559206,-165.56,0.000139,31]
[335221179,1723991559229,-165.56,0.000139,31]
[335221180,1723991559252,-165.56,0.000139,31]
[335221181,1723991559276,-165.56,0.000139,31]
[335221182,1723991559299,-165.56,0.000139,31]
[335221183,1723991559323,-165.56,0.000139,31]
[335221184,1723991559348,-165.56,0.000139,31]
[335221185,1723991597613,1311.0864134,9.348e-05,2]
[335221186,1723991623037,550.0,0.0001,2]
[335221187,1723991630330,1604.90723018,0.00010044,2]
[335221189,1723991664947,325.33,9.908e-05,2]
[335221190,1723991718608,1214.25835619,0.00010044,2]
[335221191,1723991737426,617.15,8.219e-05,2]
[335221194,1723991836038,600.0,9.13e-05,2]
[335221195,1723991836549,600.0,9.457e-05,2]
[335221196,1723991837059,600.0,9.544e-05,2]
[335221197,1723991837593,600.0,9.549e-05,2]
[335221198,1723991838075,600.0,9.754e-05,2]
[335221199,1723991850989,606.42142671,8.689e-05,2]
[335221200,1723991851021,501.17479937,9.9e-05,2]
[335221201,1723991851102,500.0,8.794e-05,2]
[335221202,1723991851184,23880.0,9.911e-05,2]
[335221203,1723991892622,404.44,9.916e-05,2]
[335221204,1723991982603,672.06,9.911e-05,2]
[335221205,1723992061285,330.34282033,9.943e-05,2]
[335221207,1723992136562,500.0,8.726e-05,2]
[335221208,1723992137074,500.0,9.019e-05,2]
[335221209,1723992195491,174.67,9.88e-05,2]
[335221210,1723992226660,10024.63438416,0.00016,120]
[335221211,1723992307979,340.83786384,9.943e-05,2]
[335221212,1723992321751,586.29,8.219e-05,2]
[335221213,1723992387317,155.0,9.943e-05,2]
[335221214,1723992391102,202.22,9.874e-05,2]
[335221217,1723992426583,155.0,9.962e-05,2]
[335221218,1723992435375,500.0,8.571e-05,2]
[335221219,1723992435876,500.0,9.097e-05,2]
[335221220,1723992436515,500.0,9.293e-05,2]
[335221221,1723992437002,500.0,9.665e-05,2]
[335221222,1723992437879,500.0,9.891e-05,2]
[335221223,1723992440584,462.35,9.908e-05,2]
[335221251,1723992632250,-578.76941515,0.0001,2]
[335221253,1723992632262,-500.0,0.00010181,2]
[335221255,1723992632272,-500.0,0.00010258,2]
[335221257,1723992632283,-500.0,0.00010436,2]
[335221258,1723992632294,-586.29,0.00010469,2]
[335221259,1723992632306,-3621.29802985,0.00010469,2]
[335221260,1723992632319,-603.38328281,0.00010469,2]
[335221261,1723992632332,-278.60878409,0.00010469,2]
[335221262,1723992632349,-741.65536624,0.00010469,2]
[335221263,1723992632362,-9731.03564827,0.00010469,2]
[335221264,1723992632372,-500.0,0.00010516,2]
[335221265,1723992632383,-4798.42868441,0.00010566,2]
[335221266,1723992632393,-356.76,0.000106,2]
[335221267,1723992632404,-424.99,0.000106,2]
[335221268,1723992632414,-356.76,0.000106,2]
[335221269,1723992632424,-355.68,0.000106,2]
[335221270,1723992632434,-240.705025,0.00010666,2]
[335221271,1723992632444,-255.66,0.00010666,2]
[335221272,1723992632454,-150.0,0.00010699,2]
[335221273,1723992632466,-426.67,0.000107,2]
[335221274,1723992632476,-356.76,0.000107,2]
[335221275,1723992632486,-356.76,0.000107,2]
[335221276,1723992632497,-835.92,0.000107,2]
[335221277,1723992632507,-150.0,0.000107,2]
[335221278,1723992632517,-150.0,0.000107,2]
[335221279,1723992632527,-426.67,0.000107,2]
[335221280,1723992632537,-426.67,0.000107,2]
[335221281,1723992632547,-150.0,0.000107,2]
[335221282,1723992632557,-150.0,0.000107,2]
[335221283,1723992632567,-835.92,0.000107,2]
[335221297,1723992632803,-356.76,0.000107,2]
[335221300,1723992632820,-150.0,0.000107,2]
[335221302,1723992632831,-833.86,0.000107,2]
[335221304,1723992632840,-426.67,0.000107,2]
[335221306,1723992632849,-356.76,0.000107,2]
[335221308,1723992632859,-150.0,0.000107,2]
[335221310,1723992632868,-426.67,0.000107,2]
[335221311,1723992632877,-150.0,0.000107,2]
[335221312,1723992632886,-150.0,0.000107,2]
[335221313,1723992632895,-425.27,0.000107,2]
[335221314,1723992632905,-150.0,0.000107,2]
[335221315,1723992632914,-300.0,0.000107,2]